Cogmind - Beta 15 @@@ ROGUE MODE // 2025.05.16 @ 23:37:44 Player: GiggleBox Result: Destroyed by G-34 Mercenary with Small Laser Performance ------------- Evolutions (0) 0 Regions Visited (2) 400 Robots Destroyed (29) 145 Value Destroyed (569) 569 Prototype IDs (0) 0 Alien Tech Used (0) 0 Bonus (0) 0 TOTAL SCORE: 1114 Bonus ------- None Cogmind --------- Core Integrity 0/250 Matter 236/300 Energy 100/100 System Corruption 4% Temperature Cool (6) Movement Treading (160) Location -10/Mines Parts ------- > --- POWER (1) -------- (None) > --- PROPULSION (2) --- Light Treads Aluminum Leg > --- UTILITY (2) ------ Small Storage Unit > --- WEAPON (2) ------- Hammer > --- INVENTORY (8) ---- Ion Engine Improved Heat Sink Hardened Light Armor Plating Particle Gun Particle Gun Particle Gun Particle Gun Rocket Launcher Peak State ------------ > --- POWER ------------ Ion Engine > --- PROPULSION ------- Light Treads Aluminum Leg > --- UTILITY ---------- Improved Heat Sink Small Storage Unit > --- WEAPON ----------- Particle Gun Particle Gun > --- INVENTORY -------- Seismic Detector Hardened Light Armor Plating Particle Gun Particle Gun Particle Gun Rocket Launcher Hammer [Rating: 12] Favorites ----------- Power Ion Engine Engine Ion Engine Propulsion Light Treads Treads Light Treads Leg Aluminum Leg Utility Small Storage Unit Device Seismic Detector Storage Small Storage Unit Protection Hardened Light Armor Plating Weapon Particle Gun Energy Gun Particle Gun Ballistic Gun Assault Rifle Launcher Rocket Launcher Impact Weapon Hammer Build | -11 -10 -10 ------- Run | Yrd Mat Min Slots Evolved . | . . . Power . | . . . Propulsion . | . . . Utility . | . . . Weapon . | . . . Parts Attached 18 | 8 5 5 Power 2 | 1 . 1 Engine 2 | 1 . 1 Core . | . . . Reactor . | . . . Propulsion 4 | 2 1 1 Treads 3 | 2 1 . Leg 1 | . . 1 Wheel . | . . . Hover . | . . . Flight . | . . . Utility 4 | 2 1 1 Device 2 | 1 . 1 Storage 1 | 1 . . Processor . | . . . Hackware . | . . . Protection 1 | . 1 . Artifact . | . . . Weapon 8 | 3 3 2 Energy Gun 4 | 1 2 1 Energy Cannon . | . . . Ballistic Gun 2 | 2 . . Ballistic Cannon . | . . . Launcher 1 | . 1 . Special Weapon . | . . . Impact Weapon 1 | . . 1 Slashing Weapon . | . . . Piercing Weapon . | . . . Special Melee Weapon . | . . . Unidentified Prototypes . | . . . Parts Lost 6 | . 1 5 Power 2 | . . 2 Propulsion 2 | . 1 1 Utility 1 | . . 1 Weapon 1 | . . 1 Highest Loss Streak 3 | . 1 3 To Critical Strikes . | . . . Average Backups 6 | 1 6 7 Power . | . 1 . Propulsion . | . . . Utility . | . . 1 Weapon 4 | . 4 5 Tool/Special . | . . . Unused Backups 4 | . 1 3 Power 1 | . . 1 Propulsion . | . . . Utility . | . . . Weapon 3 | . 1 2 Tool/Special . | . . . Average Slot Usage (%) 97 | . 100 90 Engine 13 | . 14 11 Treads 24 | . 28 15 Leg 2 | . . 11 Device 5 | . 4 9 Storage 14 | . 14 14 Protection 7 | . 9 1 Energy Gun 22 | . 23 19 Ballistic Gun 3 | . 4 . Impact Weapon 1 | . . 5 Peak Build Rating 12 | 7 11 12 Average Rating 9 | 5 9 9 On Entrance 6 | . 7 11 Naked Turns . | . . . Heaviest Build 21 | 15 21 21 Greatest Support 40 | 40 40 40 Greatest Overweight (x) 1 | . . 1 Average Overweight (x) . | . . . Largest Inventory Capacity 8 | 8 8 8 Average Capacity 7 | 7 8 8 Most Carried 8 | 2 8 8 Average Carried 6 | 1 6 7 Final Capacity 8 | 8 8 8 Final Carried 8 | 2 7 8 Class Distribution -------------------- 100% | Mutant Dominant Class ---------------- Mutant | -10/Materials Mutant | -10/Mines Resources | -11 -10 -10 ----------- Run | Yrd Mat Min Matter Collected 613 | 352 177 84 Remotely . | . . . Salvage Created 876 | 176 559 141 Parts 66 | 16 35 15 Haulers Intercepted . | . . . Recyclers Shooed 2 | . 2 . Parts Field Recycled . | . . . Retrieved Matter . | . . . Parts Self-Destructed . | . . . Prevented . | . . . Kills | -11 -10 -10 ------- Run | Yrd Mat Min Combat Hostiles Destroyed 15 | . 12 3 Guns 14 | . 11 3 AOE 1 | . 1 . Classes Destroyed 8 | 3 4 1 Worker 2 | 2 . . Builder 3 | . 1 2 Tunneler 6 | 4 . 2 Recycler 2 | 1 1 . Watcher 2 | . 2 . Swarmer 3 | . 3 . Grunt 11 | . 9 2 Assembled 1 | . . 1 Best Kill Streak 6 | 6 4 3 Combat Bots Only 3 | . 3 2 Max Kills in Single Turn 2 | 1 1 2 Gunslinging . | . . . Exploded 1 | . 1 . Melee . | . . . Uniques/NPCs Destroyed . | . . . Combat | -11 -10 -10 -------- Run | Yrd Mat Min Hostile Shots Fired 116 | . 54 62 Missed 30 | . 14 16 Hits 86 | . 40 46 Melee 7 | . . 7 Projectile 79 | . 40 39 Critical Strikes 2 | . 1 1 Damage Taken 1279 | . 505 774 Core 256 | . 81 175 Absorbed by Shields . | . . . Core Remaining (%) 100 | 100 . . Volleys Fired 75 | 12 47 16 Largest 2 | 2 2 2 Hottest 130 | 40 130 130 Shots Fired 138 | 24 91 23 Gun 134 | 24 90 20 Cannon . | . . . Launcher 4 | . 1 3 Special . | . . . Kinetic 52 | 24 28 . Thermal 54 | . 34 20 Explosive 4 | . 1 3 Electromagnetic 28 | . 28 . Robot Hit Streak 8 | 5 8 3 Robot Miss Streak 5 | 2 4 5 Penetration Max . | . . . Secondary Targets 1 | . 1 . Max Gunslinging Chain 1 | . 1 . Shots Hit Robots 76 | 14 50 12 Core Hits 40 | 8 25 7 Critical Kills . | . . . Critical Parts Destroyed 1 | . . 1 Critical Strikes 3 | . 2 1 Burn 2 | . 2 . Smash 1 | . . 1 Melee Attacks 55 | . . 55 Impact 55 | . . 55 Slashing . | . . . Piercing . | . . . Sneak Attacks 2 | . . 2 Combat Hostiles . | . . . Follow-up Attacks . | . . . Damage Inflicted 1307 | 178 750 379 Guns 983 | 178 683 122 Cannons . | . . . Explosions 169 | . 45 124 Melee 133 | . . 133 Ramming 22 | . 22 . Kinetic 347 | 178 169 . Thermal 463 | . 341 122 Explosive 124 | . . 124 Electromagnetic 218 | . 218 . Impact 133 | . . 133 Slashing . | . . . Piercing . | . . . Highest Corruption 4 | . . 4 Average Corruption 4 | . . 4 Corruption Purged . | . . . Corruption Blocked . | . . . Effects 2 | . . 2 Message Errors 1 | . . 1 Matter Fused 1 | . . 1 Overload Shots . | . . . Overflow Damage 92 | . 4 88 Projectiles . | . . . Explosions 8 | . 4 4 Melee 84 | . . 84 Knockbacks 1 | . . 1 Impact 1 | . . 1 Kinetic . | . . . Secondary . | . . . Self-Inflicted Damage 82 | . 4 78 Shots 4 | . 1 3 Rammed 5 | . 5 . Targets Rammed 5 | . 5 . Kicked . | . . . Crushed . | . . . Highest Temperature 335 | . 260 335 Average Temperature 111 | . 91 160 Received Heat Transfer 543 | . 243 300 Effects 2 | . 2 . Interference 2 | . 2 . Siege Activations . | . . . Martial Activations . | . . . Shielding Activations . | . . . Robots Disrupted . | . . . Combat Hostiles . | . . . Robots Corrupted 2 | . . 2 Combat Hostiles . | . . . Parts Fried 5 | . . 5 Impact Corruptions 3 | . . 3 Robots Melted . | . . . Combat Hostiles . | . . . Parts Melted . | . . . Heat Transferred 1234 | . 938 296 Parts Sabotaged . | . . . Parts Stolen . | . . . Parts Stripped . | . . . Power Chain Reactions 1 | . 1 . Alert | -11 -10 -10 ------- Run | Yrd Mat Min Maximum Alert Level . | . . . Low Security (%) 100 | 100 100 100 Level 1 . | . . . Level 2 . | . . . Level 3 . | . . . Level 4 . | . . . Level 5 . | . . . High Security . | . . . Max Security . | . . . Peak Influence 92 | 10 92 45 Initial . | . . . Average 18 | 1 24 8 Influence Increases 557 | 35 382 140 Destroy 0b10 Robot/C 280 | . 240 40 Destroy 0b10 Robot/NC 75 | 35 20 20 Destroy Leader 74 | . 64 10 Successful Hack 30 | . 30 . Disable Machine 15 | . 15 . Destroy Structure 38 | . 13 25 Lose Combat Pursuer 45 | . . 45 Influence Decreases 543 | 35 382 126 Time Decay 523 | 35 372 116 Lost Part 20 | . 10 10 Squads Dispatched 2 | . 2 . Investigation 1 | . 1 . Extermination . | . . . Reinforcement 1 | . 1 . Assault . | . . . Garrison . | . . . Intercept . | . . . Searches Triggered . | . . . Construction Impeded . | . . . Haulers Reinforced . | . . . Active Scanning Responses . | . . . Cargo Convoy Interrupts . | . . . Stealth | -11 -10 -10 --------- Run | Yrd Mat Min Distress Signals 2 | . 2 . Communications Jammed . | . . . Distress Signals . | . . . Times Spotted 34 | . 24 10 Peak Tracking Total 4 | . 4 4 Tactical Retreats 2 | . . 2 Traps | -11 -10 -10 ------- Run | Yrd Mat Min Traps Triggered 2 | . 2 . Indirectly . | . . . Trap Hack Attempts . | . . . Triggered . | . . . Disarmed . | . . . Reprogrammed . | . . . Reused . | . . . Traps Extracted . | . . . Installed . | . . . Triggered . | . . . Machines | -11 -10 -10 ---------- Run | Yrd Mat Min Machines Disabled 2 | . 2 . Max in Single Turn 1 | . 1 . Machines Repaired . | . . . Machines Dismantled . | . . . Machines Sabotaged . | . . . Overloaded Fab Kills . | . . . Hacking | -11 -10 -10 --------- Run | Yrd Mat Min Machines Accessed 6 | . 6 . Terminals 6 | . 6 . Fabricators . | . . . Repair Stations . | . . . Recycling Units . | . . . Scanalyzers . | . . . Garrison Access . | . . . Total Hacks 17 | . 17 . Successful 9 | . 9 . Failed 8 | . 8 . Catastrophic 1 | . 1 . Database Lockouts . | . . . Manual 16 | . 16 . Terminals 17 | . 17 . Fabricators . | . . . Repair Stations . | . . . Recycling Units . | . . . Scanalyzers . | . . . Garrison Access . | . . . Terminal Hacks 1 | . 1 . Terminal Index 1 | . 1 . Fabricator Hacks . | . . . Repair Station Hacks . | . . . Recycling Unit Hacks . | . . . Scanalyzer . | . . . Garrison Access Hacks . | . . . Unauthorized Hacks 8 | . 8 . Terminals 8 | . 8 . Botnet 2 | . 2 . Operators 1 | . 1 . Skim 5 | . 5 . Fabricators . | . . . Repair Stations . | . . . Recycling Units . | . . . Scanalyzers . | . . . Garrison Access . | . . . Data Cores Recovered . | . . . Used . | . . . Hacking Detections 5 | . 5 . Full Trace Events . | . . . Feedback Events . | . . . Feedback Blocked . | . . . Robot Schematics Acquired . | . . . Robots Built . | . . . Authchips . | . . . Time . | . . . Total Robot Build Rating . | . . . Part Schematics Acquired . | . . . Parts Built . | . . . Authchips . | . . . Time . | . . . Total Part Build Rating . | . . . Parts Repaired . | . . . Time . | . . . Parts Recycled . | . . . Recycled Matter . | . . . Retrieved Matter . | . . . Retrieved Components . | . . . Parts Scanalyzed . | . . . Part Schematics Acquired . | . . . Parts Damaged . | . . . Bothacking | -11 -10 -10 ------------ Run | Yrd Mat Min Used RIF Installer . | . . . Robots Hacked . | . . . Non-combat . | . . . Combat . | . . . Robot Hacks Applied . | . . . Relay Couplers Released . | . . . Fabnet Peak Effective % . | . . . Robots Rewired . | . . . Allies Hacked . | . . . Hacks Repelled . | . . . Allies | -11 -10 -10 -------- Run | Yrd Mat Min Total Allies . | . . . Largest Group . | . . . Highest-Rated Group . | . . . Highest-Rated Ally . | . . . Total Orders . | . . . Ally Attacks . | . . . Total Damage . | . . . Kills . | . . . Allies Corrupted . | . . . Allies Melted . | . . . Intel | -11 -10 -10 ------- Run | Yrd Mat Min Active Infowar (turns) 812 | 32 520 260 Seismic 812 | 32 520 260 Robot Analysis Total . | . . . Derelict Logs Recovered . | . . . Drone Launches . | . . . Drone Recoveries . | . . . Exploration | -11 -10 -10 ------------- Run | Yrd Mat Min Turns Passed 2443 | 187 1674 582 Spaces Moved 1039 | 91 731 217 Core 7 | 7 . . Treads 969 | 84 731 154 Legs 63 | . . 63 Wheels . | . . . Hover . | . . . Flight . | . . . Fastest Speed 50 | 50 160 160 Average Speed 161 | 151 160 169 Slowest Speed 240 | 160 160 240 Overloaded Moves . | . . . Propulsion Burnouts . | . . . Robots Hopped . | . . . Potential Cave-ins 18 | . . 18 Cave-ins Triggered . | . . . Exploration Rate (%) 46 | 4 99 37 Regions Visited 2 Branch Regions 1 Pre-discovered Areas 1 | . 1 . Known Exits Taken . | . . . Unknown Exits Taken 2 | 1 1 . Scrap Searched . | . . . Spaces Dug 35 | . 13 22 Terrain Destroyed 83 | . 15 68 Melee 22 | . . 22 Projectile . | . . . AOE 61 | . 15 46 Terrain Rammed . | . . . Walls Destroyed . | . . . Machines Disabled . | . . . Actions | -11 -10 -10 --------- Run | Yrd Mat Min Total 1558 | 112 1140 306 Wait 338 | . 335 3 Move 1037 | 90 730 217 Hop . | . . . Pick Up 14 | 2 10 2 Fast Attach 8 | 7 . 1 Attach 2 | . 1 1 Detach . | . . . Swap 20 | 1 8 11 Drop 4 | . 4 . Fire 75 | 12 47 16 Melee 55 | . . 55 Ram . | . . . Kick . | . . . Crush 5 | . 5 . Escape Stasis . | . . . Rewire . | . . . Trap . | . . . Miscellaneous . | . . . Route ------- -11/Scrapyard -10/Materials (discovered 6 exits: *Mat x3 / [*Min x2] / [*Sub]) -10/Mines (discovered 2 exits: Mat x2) History --------- Turn | Location | Event 4 | -11/Scrapyard | Discovered new exit (range 16) 188 | -11/Scrapyard | Entered Materials 306 | -10/Materials | Build established: Mutant 402 | -10/Materials | Discovered new exit (range 15) 420 | -10/Materials | Discovered new exit (range 16) 621 | -10/Materials | Discovered new exit (range 8) 994 | -10/Materials | Discovered new exit (range 16) 1170 | -10/Materials | Discovered new exit (range 16) 1280 | -10/Materials | Discovered new exit (range 9) 1564 | -10/Materials | Loaded intel: 29 machine locations 1605 | -10/Materials | Learned Storage security intel 1651 | -10/Materials | Learned location of 1 exit from Recycling 1677 | -10/Materials | Learned location of Mines (-10) 1741 | -10/Materials | Learned location of 2 exits from Subcaves 1862 | -10/Materials | Entered Mines 1863 | -10/Mines | Identified exit to Materials 1938 | -10/Mines | Core integrity fell below 50% 2149 | -10/Mines | Excavation squad dispatched 2149 | -10/Mines | A large section of the Mines collapsed 2268 | -10/Mines | Core integrity fell below 20% 2386 | -10/Mines | Lost 3 parts (1p1u1w) 2399 | -10/Mines | Excavation squad dispatched 2444 | -10/Mines | Destroyed by G-34 Mercenary with Small Laser Last Messages --------------- 02310_ K-01 Serf collects debris. 02310_ U-05 Engineer lays Concrete. 02318_ Seismic Detector destroyed. 02318_ System corrupted by crushing effect (+4). 02320_ U-05 Engineer lays Concrete. 02332_ System corrupted: Matter fused (-10). 02342_ U-05 Engineer lays Concrete. 02343_ K-01 Serf collects debris. 02346_ Particle Gun destroyed. 02347_ U-05 Engineer lays Concrete. 02355_ Ion Engine destroyed. 02363_ The unstable cave ceiling collapses. 02363_ G-34 Mercenary crushed by falling debris. 02363_ G-34 Mercenary system corrupted by crushing effect. 02389_ The unstable cave ceiling collapses. 02399_ ALERT: Derelict activity in mines confirmed. Dispatching additional escorted excavation squad. 02415_ The unstable cave ceiling collapses. 02430_ |MXJMT3Q3LVIEUMA2RYP0M7A=FPCC6M0QONSNJ